bitfinex/quotes_SOLUSD_20241117
["timestamp","ask_amount","ask_price","bid_price","bid_amount"]
[1731805978106,0.09367462,218.17,218.05,13.77176693]
[1731805978107,13.77176693,218.11,218.05,13.77176693]
[1731805978309,13.77176693,218.11,218.03,2.2932]
[1731805978510,13.77176693,218.11,218.05,13.77176693]
[1731805978831,13.77176693,218.12,218.05,13.77176693]
[1731805979126,13.77176693,218.11,218.03,2.2932]
[1731805979363,13.77176693,218.09,218.03,2.2932]
[1731805980815,13.77176693,218.08,218.03,2.2932]
[1731805981025,13.77176693,218.07,218.03,2.2932]
[1731805981826,20.09367462,218.11,218.03,2.2932]
[1731805982028,13.77176693,218.07,218.03,2.2932]
[1731805982908,13.77176693,218.08,218.03,2.2932]
[1731805983319,13.77176693,218.12,218.05,13.77176693]
[1731805983544,15.4099,218.15,218.09,13.77176693]
[1731805983742,15.4099,218.15,218.1,37.54865093]
[1731805983916,15.4099,218.15,218.1,13.77176693]
[1731805984338,15.4099,218.15,218.1,23.776884]
[1731805984530,13.77176693,218.13,218.08,23.776884]
[1731805984840,13.77176693,218.13,218.06,37.54865093]
[1731805985147,29.18166693,218.15,218.08,13.77176693]
[1731805985847,15.4099,218.15,218.1,37.54865093]
[1731805986048,15.4099,218.15,218.1,13.77176693]
[1731805986452,15.4099,218.15,218.11,23.776884]
[1731805987145,0.5427025,218.18,218.12,13.77176693]
[1731805988155,0.5427025,218.18,218.13,23.776884]
[1731805988451,0.5427025,218.18,218.16,23.776884]
[1731805989532,0.5427025,218.18,218.14,23.776884]
[1731805990057,14.31446943,218.18,218.13,23.776884]
[1731805990343,14.31446943,218.18,218.11,23.776884]
[1731805990551,14.31446943,218.18,218.11,37.54865093]
[1731805990758,0.5427025,218.18,218.13,23.776884]
[1731805994051,0.5427025,218.18,218.13,37.54865093]
[1731805994256,0.5427025,218.18,218.15,23.776884]
[1731805995142,0.5427025,218.18,218.15,37.54865093]
[1731805995546,0.5427025,218.18,218.17,37.54865093]
[1731805996251,14.31446943,218.18,218.17,23.776884]
[1731805996568,0.5427025,218.18,218.17,23.776884]
[1731805999266,14.31446943,218.18,218.1,13.77176693]
[1731805999570,13.77176693,218.17,218.11,23.776884]
[1731805999751,14.31446943,218.18,218.11,23.776884]
[1731806000360,13.77176693,218.13,218.06,13.77176693]
[1731806000558,13.77176693,218.14,218.07,13.77176693]
[1731806000959,13.77176693,218.15,218.07,13.77176693]
[1731806001745,13.77176693,218.13,218.08,23.776884]
[1731806001948,13.77176693,218.12,218.05,23.776884]
[1731806002155,13.77176693,218.12,218.04,13.77176693]
[1731806003041,13.77176693,218.11,218.04,13.77176693]
[1731806003545,13.77176693,218.1,218.03,2.2932]
[1731806003741,13.77176693,218.08,218.03,2.2932]
[1731806005066,13.77176693,218.09,218.03,2.2932]
[1731806005646,13.77176693,218.09,218.04,23.776884]
[1731806005852,4.67807462,218.13,218.03,2.2932]
[1731806005853,13.77176693,218.06,218.03,2.2932]
[1731806006049,15.0123,218.08,218.03,2.2932]
[1731806006270,13.77176693,218.06,218.03,2.2932]
[1731806008961,13.77176693,218.07,218.03,2.2932]
[1731806009450,13.77176693,218.06,218.03,2.2932]
[1731806009669,13.77176693,218.05,218.03,2.2932]
[1731806010047,13.77176693,218.06,218.03,2.2932]
[1731806010560,13.77176693,218.14,218.04,37.54865093]
[1731806010762,13.77176693,218.14,218.07,23.776884]
[1731806011175,13.77176693,218.12,218.04,13.77176693]
[1731806011468,13.77176693,218.12,218.05,23.776884]
[1731806015382,15.0123,218.15,218.11,13.77176693]
[1731806015565,30.06376693,218.24,218.15,23.776884]
[1731806015767,30.06376693,218.24,218.17,13.77176693]
[1731806015963,30.06376693,218.24,218.17,37.54865093]
[1731806016763,30.06376693,218.24,218.16,23.776884]
[1731806018073,13.77176693,218.22,218.16,23.776884]
[1731806019872,16.292,218.24,218.16,23.776884]
[1731806019873,16.292,218.24,218.17,13.77176693]
[1731806020186,16.292,218.24,218.17,37.54865093]
[1731806021963,13.77176693,218.23,218.16,23.776884]
[1731806024786,16.292,218.24,218.17,37.54865093]
[1731806024960,13.77176693,218.27,218.17,37.54865093]
[1731806025767,13.77176693,218.27,218.17,37.79963093]
[1731806026089,13.77176693,218.29,218.17,37.79963093]
[1731806026385,13.77176693,218.29,218.17,37.89330555]
[1731806026566,13.77176693,218.29,218.17,24.12153862]
[1731806026893,13.77176693,218.27,218.17,37.89330555]
[1731806027764,13.77176693,218.27,218.17,37.79963093]
[1731806030293,13.77176693,218.26,218.17,37.54865093]
[1731806030899,13.77176693,218.25,218.17,37.54865093]
[1731806033881,13.77176693,218.21,218.08,22.5424]
[1731806034079,13.77176693,218.21,218.14,13.77176693]
[1731806034294,13.77176693,218.22,218.14,13.77176693]
[1731806034487,13.77176693,218.23,218.15,13.77176693]
[1731806035404,13.77176693,218.23,218.17,37.54865093]
[1731806036119,13.77176693,218.23,218.16,23.776884]
[1731806036272,13.77176693,218.21,218.09,0.25098]
[1731806036474,13.77176693,218.21,218.12,13.77176693]
[1731806036702,29.43126693,218.21,218.12,13.77176693]
[1731806036926,13.77176693,218.19,218.08,22.5424]
[1731806037078,15.6595,218.21,218.1,13.77176693]
[1731806037079,13.77176693,218.17,218.1,13.77176693]
[1731806037275,13.77176693,218.17,218.08,6.4513]
[1731806037504,13.77176693,218.17,218.1,13.77176693]
[1731806038301,13.77176693,218.17,218.04,7.14097276]
[1731806038619,13.77176693,218.15,218.07,13.77176693]
[1731806039977,13.77176693,218.15,218.08,23.776884]
[1731806043313,5.1261025,218.18,218.08,23.776884]
[1731806043314,13.77176693,218.14,218.08,23.776884]
[1731806043501,13.77176693,218.12,218.05,13.77176693]
[1731806043696,0.09367462,218.17,218.06,23.776884]
[1731806043697,13.77176693,218.13,218.06,23.776884]
[1731806044014,15.2077,218.12,218.06,23.776884]
[1731806044219,28.97946693,218.12,218.06,23.776884]
[1731806044598,13.77176693,218.11,218.05,23.776884]
[1731806044814,28.97946693,218.12,218.05,37.54865093]
[1731806045023,15.2077,218.12,218.06,13.77176693]
[1731806045322,29.82286693,218.15,218.09,13.77176693]
[1731806046231,29.82286693,218.15,218.07,13.77176693]
[1731806046398,29.82286693,218.15,218.08,23.776884]
[1731806048499,29.82286693,218.15,218.09,13.77176693]
[1731806048920,16.0511,218.15,218.1,23.776884]
[1731806051227,0.5427025,218.18,218.13,13.77176693]
[1731806051524,0.5427025,218.18,218.14,23.776884]
[1731806055512,0.5427025,218.18,218.12,23.776884]
[1731806055513,13.77176693,218.17,218.12,23.776884]
[1731806055726,13.77176693,218.15,218.1,23.776884]
[1731806055915,13.77176693,218.15,218.08,23.776884]
[1731806056828,0.5427025,218.18,218.08,23.776884]
[1731806056829,13.77176693,218.17,218.1,23.776884]
[1731806059134,13.77176693,218.15,218.07,13.77176693]
[1731806059436,13.77176693,218.15,218.08,23.776884]
[1731806061237,13.77176693,218.17,218.09,13.77176693]
[1731806061527,13.77176693,218.17,218.1,23.776884]
[1731806062832,0.5427025,218.18,218.1,23.776884]
[1731806063128,0.5427025,218.18,218.12,23.776884]
[1731806064916,0.5427025,218.18,218.12,37.54865093]
[1731806066822,0.5427025,218.18,218.12,32.57501892]
[1731806072126,0.5427025,218.18,218.16,8.79813492]
[1731806072333,0.5427025,218.18,218.17,23.776884]
[1731806072521,0.5427025,218.18,218.17,32.57501892]
[1731806073530,0.5427025,218.18,218.17,23.776884]
[1731806073740,0.5427025,218.18,218.16,23.776884]
[1731806076024,0.5427025,218.18,218.09,22.6588]
[1731806076025,0.5427025,218.18,218.14,23.776884]
[1731806078442,0.5427025,218.18,218.15,8.79813492]
[1731806078629,0.5427025,218.18,218.16,23.776884]
[1731806078833,0.5427025,218.18,218.17,32.57501892]
[1731806080730,0.5427025,218.18,218.16,23.776884]
[1731806081446,0.5427025,218.18,218.14,23.776884]
[1731806081634,0.5427025,218.18,218.09,22.6588]
[1731806081635,9.34083742,218.18,218.09,6.079]
[1731806081961,8.79813492,218.16,218.09,8.79813492]
[1731806082156,8.79813492,218.16,218.05,7.1713848]
[1731806082363,8.79813492,218.14,218.07,8.79813492]
[1731806082541,8.79813492,218.14,218.05,7.1713848]
[1731806082542,8.79813492,218.12,218.05,7.1713848]
[1731806083055,8.79813492,218.06,218.03,2.2932]
[1731806084868,13.76510045,218.05,218.03,2.2932]
[1731806090649,19.9255,218.11,218.04,37.54198445]
[1731806090650,29.10570045,218.11,218.04,37.54198445]
[1731806090860,15.3406,218.11,218.05,13.76510045]
[1731806091047,15.3406,218.11,218.06,13.76510045]
[1731806092040,15.3406,218.11,218.06,23.776884]
[1731806093973,4.5837,218.17,218.08,23.776884]
[1731806093974,15.0769,218.17,218.08,23.776884]
[1731806094166,13.76510045,218.15,218.08,13.76510045]
[1731806094460,0.09367462,218.14,218.07,13.76510045]
[1731806094654,13.85877507,218.14,218.06,13.76510045]
[1731806094957,13.85877507,218.14,218.07,23.776884]
[1731806095944,13.85877507,218.14,218.03,2.2932]
[1731806095945,13.76510045,218.1,218.05,23.776884]
[1731806096140,13.76510045,218.1,218.04,23.776884]
[1731806096341,13.76510045,218.11,218.04,23.776884]
[1731806096557,13.76510045,218.11,218.04,37.54198445]
[1731806097756,0.09367462,218.11,218.04,37.54198445]
[1731806098740,13.76510045,218.11,218.04,37.54198445]
[1731806099957,0.09367462,218.11,218.04,37.54198445]
[1731806100159,13.76510045,218.13,218.05,13.76510045]
[1731806100362,13.76510045,218.14,218.07,23.776884]
[1731806100540,0.09367462,218.13,218.07,23.776884]
[1731806100747,0.09367462,218.11,218.04,37.54198445]
[1731806101244,13.76510045,218.14,218.06,13.76510045]
[1731806101463,0.12549,218.16,218.08,13.76510045]
[1731806101642,0.09367462,218.15,218.08,13.76510045]
[1731806102145,0.09367462,218.13,218.06,13.76510045]
[1731806103868,15.0769,218.17,218.11,13.76510045]
[1731806105150,28.84200045,218.17,218.09,13.76510045]
[1731806105863,13.76510045,218.15,218.09,13.76510045]
[1731806106345,0.09367462,218.14,218.07,13.76510045]
[1731806106545,13.76510045,218.13,218.05,13.76510045]
[1731806106849,8.80372253,218.13,218.05,8.80372253]
[1731806107477,8.80372253,218.13,218.04,6.2394]
[1731806107655,8.80372253,218.13,218.06,8.80372253]
[1731806107957,0.09367462,218.13,218.07,8.80372253]
[1731806108146,0.09367462,218.09,218.03,11.09692253]
[1731806110552,8.89739715,218.11,218.03,2.2932]
[1731806110756,8.89739715,218.11,218.03,11.09692253]
[1731806111860,0.5427025,218.18,218.1,8.80372253]
[1731806112169,0.5427025,218.18,218.12,8.80372253]
[1731806113277,0.5427025,218.18,218.05,0.12549]
[1731806113278,0.5427025,218.18,218.16,8.80372253]
[1731806114857,0.5427025,218.18,218.16,13.74126121]
[1731806115073,0.5427025,218.18,218.11,23.902374]
[1731806115376,0.5427025,218.18,218.14,13.74126121]
[1731806116167,0.5427025,218.18,218.17,13.74126121]
[1731806116353,0.5427025,218.18,218.17,37.51814521]
[1731806117374,13.74126121,218.29,218.21,160.3572975]
[1731806117671,13.74126121,218.29,218.22,23.776884]
[1731806117865,13.74126121,218.3,218.22,23.776884]
[1731806118064,0.09367462,218.31,218.23,13.74126121]
[1731806118273,13.74126121,218.31,218.23,13.74126121]
[1731806118478,16.0111,218.32,218.23,13.74126121]
[1731806118681,0.09367462,218.3,218.23,13.74126121]
[1731806118872,13.74126121,218.29,218.21,13.74126121]
[1731806119194,13.74126121,218.29,218.22,23.776884]
[1731806120893,0.09367462,218.26,218.18,13.74126121]
[1731806121096,20.0,218.31,218.2,13.74126121]
[1731806121392,13.74126121,218.29,218.21,23.776884]
[1731806122027,13.74126121,218.29,218.21,37.51814521]
[1731806125489,0.09367462,218.26,218.19,13.74126121]
[1731806125692,13.74126121,218.27,218.21,13.74126121]
[1731806125996,13.74126121,218.29,218.21,13.74126121]
[1731806127468,13.74126121,218.31,218.23,13.74126121]
[1731806128498,13.74126121,218.29,218.21,13.74126121]
[1731806129480,13.74126121,218.27,218.19,13.74126121]
[1731806130619,13.74126121,218.3,218.21,13.74126121]
[1731806131096,0.09367462,218.29,218.21,13.74126121]
[1731806131785,13.74126121,218.28,218.21,13.74126121]
[1731806132002,13.74126121,218.28,218.2,23.776884]
[1731806132176,6.6995,218.35,218.2,23.776884]
[1731806132177,16.6054,218.39,218.27,13.74126121]
[1731806132381,30.34666121,218.39,218.3,13.74126121]
[1731806132878,0.09367462,218.38,218.3,13.74126121]
[1731806133294,0.09367462,218.38,218.32,13.74126121]
[1731806133508,0.09367462,218.38,218.3,13.74126121]
[1731806134182,13.83493583,218.38,218.3,13.74126121]
[1731806134373,13.83493583,218.38,218.23,0.34465462]
[1731806134694,13.83493583,218.38,218.3,23.776884]
[1731806136476,13.83493583,218.38,218.31,13.74126121]
[1731806136477,13.74126121,218.38,218.31,13.74126121]
[1731806136804,25.38853763,218.39,218.31,8.78313763]
[1731806137192,16.6054,218.39,218.31,8.78313763]
[1731806137502,16.6054,218.39,218.32,23.776884]
[1731806140174,16.6054,218.39,218.35,8.78313763]
[1731806140392,0.5427025,218.4,218.38,23.776884]
[1731806140701,0.5427025,218.4,218.39,8.78313763]
[1731806140918,0.5427025,218.4,218.39,32.56002163]
[1731806141516,0.5427025,218.4,218.37,8.78313763]
[1731806141813,0.5427025,218.4,218.38,23.776884]
[1731806143013,0.5427025,218.4,218.38,13.71443039]
[1731806145300,0.5427025,218.4,218.39,23.776884]
[1731806145510,17.76565358,218.56,218.43,160.3572975]
[1731806145818,17.76565358,218.56,218.39,23.776884]
[1731806145819,13.71443039,218.53,218.45,13.71443039]
[1731806146319,13.71443039,218.51,218.43,13.71443039]
[1731806146914,13.71443039,218.49,218.42,23.776884]
[1731806147421,0.09367462,218.53,218.41,13.71443039]
[1731806147422,0.19367462,218.53,218.41,13.71443039]
[1731806147608,13.71443039,218.45,218.39,23.776884]
[1731806147921,13.71443039,218.47,218.39,23.776884]
[1731806149128,13.71443039,218.47,218.4,13.71443039]
[1731806150415,16.6054,218.54,218.4,13.71443039]
[1731806150592,13.71443039,218.5,218.43,23.776884]
[1731806151313,0.09367462,218.54,218.43,30.029484]
[1731806151519,13.71443039,218.51,218.43,30.029484]
[1731806152594,13.71443039,218.51,218.42,23.776884]
[1731806155125,13.71443039,218.51,218.38,6.2526]
[1731806155126,13.71443039,218.51,218.44,23.776884]
[1731806159329,13.71443039,218.51,218.43,23.776884]
[1731806160529,13.71443039,218.53,218.45,23.776884]
[1731806160827,4.5755,218.56,218.44,13.71443039]
[1731806160828,13.71443039,218.51,218.44,13.71443039]
[1731806161633,13.71443039,218.51,218.42,13.71443039]
[1731806161818,13.71443039,218.51,218.43,23.776884]
[1731806162017,13.71443039,218.49,218.42,13.71443039]
[1731806162520,13.71443039,218.49,218.4,13.71443039]
[1731806162903,8.77525296,218.48,218.4,8.77525296]
[1731806163425,6.1797,218.55,218.4,8.77525296]
[1731806163426,15.4028,218.57,218.4,8.77525296]
[1731806163620,8.77525296,218.53,218.44,8.77525296]
[1731806163809,4.5754,218.56,218.44,8.77525296]
[1731806164003,8.77525296,218.53,218.44,8.77525296]
[1731806165229,0.09367462,218.52,218.44,8.77525296]
[1731806165523,8.77525296,218.49,218.42,8.77525296]
[1731806166102,8.77525296,218.49,218.39,23.776884]
[1731806166302,8.77525296,218.49,218.4,8.77525296]
[1731806166932,13.71129678,218.48,218.4,13.71129678]
[1731806167432,13.71129678,218.5,218.42,13.71129678]
[1731806168631,13.71129678,218.52,218.45,23.776884]
[1731806169633,12.71129678,218.52,218.45,23.776884]
[1731806170532,13.71129678,218.54,218.46,13.71129678]
[1731806174131,13.71129678,218.52,218.44,13.71129678]
[1731806174734,13.71129678,218.5,218.42,13.71129678]
[1731806175726,0.1,218.54,218.38,6.2526]
[1731806175727,13.71129678,218.48,218.4,13.71129678]
[1731806178038,0.09367462,218.47,218.4,13.71129678]
[1731806178339,13.71129678,218.46,218.39,13.71129678]
[1731806178941,13.71129678,218.44,218.37,13.71129678]
[1731806179109,13.71129678,218.43,218.36,13.71129678]
[1731806179845,20.1668,218.48,218.4,13.71129678]
[1731806179846,29.30089678,218.48,218.4,13.71129678]
[1731806180045,13.8049714,218.47,218.39,13.71129678]
[1731806180339,13.71129678,218.46,218.39,13.71129678]
[1731806182435,0.09367462,218.45,218.33,6.0837]
[1731806182618,13.71129678,218.42,218.35,13.71129678]
[1731806184151,13.71129678,218.42,218.33,13.71129678]
[1731806184152,13.71129678,218.4,218.33,13.71129678]
[1731806184439,13.71129678,218.39,218.32,13.71129678]
[1731806184643,29.30089678,218.39,218.31,13.71129678]
[1731806185139,13.71129678,218.38,218.31,13.71129678]
[1731806185518,29.30089678,218.39,218.31,13.71129678]
[1731806186347,15.5896,218.39,218.32,13.71129678]
[1731806186553,15.5896,218.39,218.34,13.71129678]
[1731806186721,15.5896,218.39,218.36,13.71129678]
[1731806186921,16.62,218.44,218.37,8.77814665]
[1731806188021,8.77814665,218.43,218.35,8.77814665]
[1731806188236,8.77814665,218.43,218.31,0.12549]
[1731806188237,8.77814665,218.41,218.33,8.77814665]
[1731806189636,8.77814665,218.39,218.25,6.73701208]
[1731806189930,8.77814665,218.39,218.3,8.77814665]
[1731806190443,8.77814665,218.39,218.32,8.77814665]
[1731806191044,16.62,218.44,218.37,8.77814665]
[1731806194051,16.62,218.44,218.39,8.77814665]
[1731806195454,16.62,218.49,218.41,8.77814665]
[1731806195823,16.62,218.49,218.42,0.12549]
[1731806196050,16.62,218.49,218.43,8.77814665]
[1731806199466,25.39814665,218.55,218.46,0.12549]
[1731806200140,0.09367462,218.54,218.46,0.12549]
[1731806201344,16.62,218.55,218.46,0.25098]
[1731806201535,16.62,218.55,218.48,8.77814665]
[1731806205739,16.62,218.55,218.46,0.25098]
[1731806205940,16.62,218.55,218.48,8.77814665]
[1731806207340,16.62,218.55,218.49,24.027864]
[1731806207553,8.77814665,218.6,218.51,0.25098]
[1731806207857,0.09367462,218.61,218.53,0.12549]
[1731806208054,8.87182127,218.61,218.53,0.12549]
[1731806208442,8.77814665,218.61,218.53,0.12549]
[1731806209438,0.09367462,218.6,218.52,8.77814665]
[1731806209663,8.77814665,218.59,218.51,0.12549]
[1731806209864,0.09367462,218.6,218.51,0.12549]
[1731806210040,8.77814665,218.59,218.51,0.12549]
[1731806210441,8.77814665,218.59,218.52,8.77814665]
[1731806214044,4.66827462,218.6,218.52,8.77814665]
[1731806214250,13.89504915,218.62,218.53,0.12549]
[1731806214464,0.09367462,218.61,218.53,0.12549]
[1731806214844,13.89504915,218.62,218.55,0.25098]
[1731806214845,0.5427025,218.62,218.55,0.25098]
[1731806215044,0.5427025,218.62,218.61,8.77814665]
[1731806216052,0.5427025,218.62,218.61,9.02912665]
[1731806216864,0.5427025,218.62,218.54,23.776884]
[1731806217075,0.5427025,218.62,218.61,8.77814665]
[1731806220661,0.5427025,218.62,218.55,6.15296942]
[1731806220662,0.5427025,218.62,218.56,0.12549]
[1731806220860,0.5427025,218.62,218.61,8.77814665]
[1731806221173,0.5427025,218.62,218.59,8.77814665]
[1731806221462,0.5427025,218.62,218.61,8.77814665]
[1731806222751,0.5427025,218.62,218.5,12.65127896]
[1731806222752,20.09367462,218.61,218.47,6.114]
[1731806222953,8.77814665,218.59,218.52,8.77814665]
[1731806223167,0.09367462,218.59,218.52,8.77814665]
[1731806223677,0.09367462,218.57,218.51,8.77814665]
[1731806223847,21.04867462,218.57,218.5,8.77814665]
[1731806224167,21.04867462,218.57,218.51,8.77814665]
[1731806224548,16.47347462,218.57,218.52,8.77814665]
[1731806224752,16.47347462,218.57,218.53,13.69905628]
[1731806225366,16.47347462,218.57,218.52,13.69905628]
[1731806225981,21.04867462,218.57,218.5,13.69905628]
[1731806226149,34.7477309,218.57,218.5,13.69905628]
[1731806226468,21.04867462,218.57,218.5,13.69905628]
[1731806226854,34.7477309,218.57,218.5,13.69905628]
[1731806227568,13.69905628,218.51,218.37,6.0128]
[1731806227899,13.69905628,218.51,218.41,13.69905628]
[1731806227900,29.2151309,218.48,218.41,13.69905628]
[1731806228608,15.51607462,218.48,218.42,13.69905628]
[1731806229118,33.7923309,218.48,218.41,13.69905628]
[1731806230388,0.1,218.5,218.43,13.69905628]
[1731806230389,20.0,218.5,218.43,13.69905628]
[1731806231029,0.09367462,218.49,218.43,13.69905628]
[1731806231607,4.577,218.48,218.41,13.69905628]
[1731806233083,13.69905628,218.5,218.41,13.69905628]
[1731806233409,13.69905628,218.5,218.43,13.69905628]
[1731806234111,0.09367462,218.49,218.41,13.69905628]
[1731806234491,13.69905628,218.48,218.41,13.69905628]
[1731806234802,18.27625628,218.48,218.41,13.69905628]
[1731806235202,0.09367462,218.47,218.39,13.69905628]
[1731806235382,18.27625628,218.48,218.39,13.69905628]
[1731806235383,13.69905628,218.46,218.39,13.69905628]
[1731806235797,15.4224,218.45,218.39,13.69905628]
[1731806236300,33.7927309,218.44,218.37,13.69905628]
[1731806236686,4.5781,218.43,218.35,13.69905628]
[1731806237296,13.7927309,218.42,218.35,13.69905628]
[1731806237816,13.69905628,218.4,218.33,13.69905628]
[1731806238100,13.69905628,218.38,218.31,13.69905628]
[1731806238283,13.69905628,218.36,218.29,13.69905628]
[1731806238499,13.69905628,218.36,218.27,13.69905628]
[1731806238701,24.5798,218.35,218.27,13.69905628]
[1731806238924,11.4453,218.43,218.27,13.69905628]
[1731806238925,4.70419,218.4,218.27,13.69905628]
[1731806239218,4.70419,218.4,218.31,13.69905628]
[1731806239219,37.47594028,218.39,218.31,13.69905628]
[1731806240196,13.69905628,218.37,218.29,13.69905628]
[1731806240399,37.47594028,218.39,218.31,13.69905628]
[1731806240622,23.776884,218.39,218.33,13.69905628]
[1731806241925,33.69995628,218.41,218.33,13.69905628]
[1731806241926,20.0,218.4,218.33,13.69905628]
[1731806244314,24.5788,218.4,218.33,13.69905628]
[1731806245430,0.09367462,218.39,218.33,13.69905628]
[1731806245613,0.09367462,218.39,218.22,6.0128]
[1731806245614,13.69905628,218.37,218.29,13.69905628]
[1731806246221,13.69905628,218.37,218.3,13.69905628]
[1731806246803,4.5795,218.36,218.29,13.69905628]
[1731806247225,13.69905628,218.37,218.29,13.69905628]
[1731806247410,20.0,218.38,218.33,13.69905628]
[1731806247613,15.4224,218.41,218.33,13.69905628]
[1731806247614,33.69995628,218.41,218.33,13.69905628]
[1731806247923,13.69905628,218.39,218.33,13.69905628]
[1731806249107,19.8153,218.46,218.38,13.69905628]
[1731806249309,19.8153,218.46,218.4,13.69905628]
[1731806252880,15.2377,218.52,218.4,13.69905628]
[1731806253203,13.69905628,218.49,218.4,13.69905628]
[1731806253988,19.8139,218.52,218.33,0.1]
[1731806253989,19.8139,218.52,218.44,13.69905628]
[1731806254487,15.2377,218.52,218.46,13.69905628]
[1731806258528,15.2377,218.52,218.48,13.69905628]
[1731806259387,15.2377,218.52,218.36,24.027864]
[1731806259613,15.2377,218.52,218.47,13.69905628]
[1731806261295,15.2377,218.52,218.46,13.69905628]
[1731806261703,33.7927309,218.51,218.44,13.69905628]
[1731806261906,33.7927309,218.51,218.42,13.69905628]
[1731806262402,33.7927309,218.51,218.44,13.69905628]
[1731806262590,38.3692309,218.51,218.44,13.69905628]
[1731806262785,24.67017462,218.51,218.44,13.69905628]
[1731806262996,15.2377,218.52,218.46,13.69905628]
[1731806263196,15.2377,218.52,218.48,13.69905628]
[1731806266593,0.09367462,218.53,218.5,13.69905628]
[1731806266795,0.09367462,218.53,218.52,13.69905628]
[1731806268218,0.09367462,218.53,218.5,13.69905628]
[1731806269090,0.09367462,218.53,218.52,13.69905628]
[1731806274296,0.09367462,218.53,218.52,13.82454628]
[1731806275197,0.09367462,218.53,218.52,27.64909256]
[1731806275401,0.09367462,218.53,218.52,13.95003628]
[1731806277805,0.09367462,218.53,218.52,27.64909256]
[1731806278003,0.09367462,218.53,218.52,51.42597656]
[1731806278212,0.09367462,218.53,218.52,57.96877656]
[1731806278605,0.09367462,218.53,218.52,58.06245118]
[1731806278806,13.69905628,218.7,218.58,0.25098]
[1731806279009,26.8512,218.71,218.61,13.82454628]
[1731806279903,18.27155628,218.7,218.61,13.82454628]
[1731806280299,13.69905628,218.68,218.59,13.69905628]
[1731806281131,4.5731,218.67,218.59,13.69905628]
[1731806281424,4.5731,218.67,218.53,23.776884]
[1731806281425,13.69905628,218.68,218.61,13.69905628]
[1731806282401,4.5727,218.69,218.61,13.69905628]
[1731806282609,20.0,218.7,218.61,13.82454628]
[1731806282832,16.0286,218.71,218.61,13.82454628]
[1731806283013,16.0286,218.71,218.61,37.72692028]
[1731806283721,16.0286,218.71,218.61,37.8205949]
[1731806284529,16.0286,218.71,218.61,37.72692028]
[1731806286407,20.0,218.74,218.61,59.72192028]
[1731806286733,33.69905628,218.74,218.61,59.72192028]
[1731806286935,20.0,218.74,218.61,59.8155949]
[1731806287529,13.69905628,218.75,218.61,59.8155949]
[1731806287832,13.69905628,218.76,218.61,59.8155949]
[1731806288033,33.69905628,218.76,218.61,59.8155949]
[1731806288233,38.27025628,218.76,218.61,59.8155949]
[1731806289017,13.69905628,218.75,218.61,59.8155949]
[1731806289218,13.69905628,218.75,218.61,44.38582028]
[1731806289417,4.5716,218.74,218.61,44.38582028]
[1731806289613,18.27105628,218.73,218.61,44.13484028]
[1731806289923,0.0427025,218.62,218.61,44.13484028]
[1731806290127,0.0427025,218.62,218.61,44.2285149]
[1731806290810,0.0427025,218.62,218.61,44.4794949]
[1731806292323,0.0427025,218.62,218.61,20.35795628]
[1731806293038,0.0427025,218.62,218.61,15.50724363]
[1731806293417,0.0427025,218.62,218.61,39.53510763]
[1731806294139,20.649,218.79,218.67,160.9]
[1731806294338,8.75466901,218.77,218.71,0.12549]
[1731806295324,20.649,218.79,218.61,6.6589]
[1731806295325,20.649,218.79,218.67,8.75466901]
[1731806295643,20.649,218.79,218.69,8.75466901]
[1731806295644,11.15641381,218.77,218.69,8.75466901]
[1731806296131,15.72751381,218.77,218.69,8.75466901]
[1731806296335,15.72751381,218.77,218.67,8.75466901]
[1731806296336,8.75466901,218.75,218.67,8.75466901]
[1731806296518,8.75466901,218.75,218.68,0.12549]
[1731806297323,8.75466901,218.75,218.68,8.88015901]
[1731806298134,13.32606901,218.75,218.68,8.75466901]
[1731806298527,13.32606901,218.75,218.61,6.6589]
[1731806298746,13.32606901,218.75,218.67,0.12549]
[1731806299124,8.75466901,218.73,218.61,6.6589]
[1731806299437,4.572,218.72,218.65,8.75466901]
[1731806300033,16.0784,218.7,218.64,8.75466901]
[1731806301021,24.83306901,218.7,218.57,0.09367462]
[1731806301242,20.6508,218.7,218.63,8.75466901]
[1731806301414,20.6508,218.7,218.64,8.75466901]
[1731806301836,20.6508,218.7,218.63,8.75466901]
[1731806302438,8.75466901,218.68,218.61,8.75466901]
[1731806302644,29.40546901,218.7,218.63,8.75466901]
[1731806302829,16.0784,218.7,218.64,8.75466901]
[1731806303019,16.0784,218.7,218.65,8.75466901]
[1731806303224,16.0784,218.7,218.56,6.6589]
[1731806303225,16.0784,218.7,218.66,8.75466901]
[1731806303631,16.0784,218.7,218.67,8.75466901]
[1731806304517,16.0784,218.74,218.68,0.12549]
[1731806305323,16.0784,218.74,218.69,8.75466901]
[1731806308139,16.0784,218.74,218.68,0.12549]